Workbook

Sheet Intro
G1: Project: SEA RESORT | K1: ①st STAGE 8 HOMES with extension ②nd STAGE up to 25 HOMES plus CAFÉ-RESTAURANT
O3: PRO-FORMA BUDGET FOR 8 HOMES | T3: OPERATING INSTRUCTIONS | V3: Level 0
P4: USD | T4: (recommended)
O5: ▪ HOMES & CABINS | P5: =ROUND(Invest!P43,-3) -> 2226000 | R5: 1 | S5: Read the NOTE
J6: BUSINESS PLAN | K6: 2 | O6: ▪ CONSTRUCTION | P6: =ROUND(Invest!P47,-3) -> 449000 | R6: =R5+1 -> 2 | S6: Change | U6: if you so desire - select on Option Button below
O7: ▪ PICKUP CAR & COMPUTER | P7: =Cap.Goods!F11+Cap.Goods!F18 -> 54500 | R7: =R6+1 -> 3 | S7: Look and note these data of the project
O8: ▪ ARCHITECTURAL DESIGN | P8: =Cap.Goods!F16 -> 12000 | R8: =R7+1 -> 4 | S8: Switch over to other projects here
O9: ▪ FIN. MODEL & CONTROL | P9: =Cap.Goods!F17 -> 24000 | R9: =R8+1 -> 5 | S9: To study whichever project run the sequences, on the right MENU ↓ and
O10: CAP. GOODS & SERVISES: | P10: =SUM(P5:P9) -> 2765500 | X10: Level MENU ↑ .
O11: Û LAND FOR ALL PROJECTS: | P11: =Invest!P54 -> 1638400
O12: ▪ TAX FOR LAND | P12: =Cap.Goods!F31 -> 204800
O13: ▪ COST OF PERMITS | P13: =Cap.Goods!F32 -> 24000
O14: ADMINISTRATIVE EXPENSES: | P14: =SUM(P12:P13) -> 228800 | R14: To go from one worksheet to another use dedicated buttons only (recommended)
O15: TOTAL: | P15: =ROUND((P10+P11+P14),-3) -> 4633000
Q17: MENU | T17: HIERARCHIC STRUCTURE - PORTAL SECTION
Q19: Level 6 | T19: NOT AVAILABLE | U19: Û Risk Management.
T20: Select from MENU and then browse.
Q21: Level 5 | T21: NOT AVAILABLE | U21: Û Risk Assessmsnt - ecserpt of | X21: Feedback
T22: demo version of financial risk of the project
Q23: Level 4 | T23: Bayes - Decision Analyses
T24: Posterior Probabilities for Sensitivity Analyses
Q25: Level 3 | T25: Investment Planning and Financial Modelong
T26: (extract a part of VBA-software program)
Q27: Level 2 | T27: Budget - Cash Flows, Measuring Profitability.
T28: Sensitivity Analyses as a transition to upper level.
Q29: Level 1 | T29: Cap.Goods and Services. Capital investment
Q31: Level 0 | T31: What the Investor desires to achieve
T32: and how mush does it cost - the present level
T33: The revenues, depending on the demand, are fixed in Sheet "Budget"
J35: N NOTE. ANY ATTEMPT TO SAFE THE WORKBOOK A NEW NAME IN THE Save As DIALOG BOX OR WITH SOME CHANGES WILL GENERATE
J36: HAZARDOUS TEMPLATES DUE TO THE FIREWALL SYSTEM WE USUALLY APPLY THAT MAY CAUSE IRREPARABLE DAMAGES ON YOUR PC SYSTEM

Sheet Cap.Goods
C1: Level 1 | H1: Mariner | I1: =Intro!$K$6 -> 2
C2: CAPITAL GOODS AND SERVIVES | H2: Nr of Mos: | K2: =Budget!$C$14 -> 6 | L2: =Budget!$D$14 -> 12
H3: Date: | K3: =Budget!C15 -> 2014-06-30 | L3: =Budget!D15 -> 2014-12-31
B4: A. u | C4: EXPORT VALUE u | E4: % | F4: USD | I4: CASH PAYMENTS u | K4: Advance | N4: Check
N5: 
B6: =B24 -> 24 | D6: =IF(B24<10,"HOMES & CABINS - U.S. CONTENT:","HOMES, CABINS + RESTAURANT, U.S.:") -> HOMES, CABINS + RESTAURANT, U.S.: | E6: =Invest!M43 -> 0.9345865963 | F6: =Invest!L43 -> 2124600 | I6: Homes & Cabins | J6: 0.15 | K6: =F6*J6 -> 318690 | L6: =F6-K6 -> 1805910
D7: ↑ ELIGIBLE FOREIGN CONTENT: | E7: =Invest!O43 -> 0.06541340365 | F7: =Invest!N43 -> 101400 | K7: =F7*J6 -> 15210 | L7: =F7-K7 -> 86190
D8: SubTOTAL: | E8: =SUM(E6:E7) -> 1 | F8: =SUM(F6:F7) -> 2226000 | I8: Front payment, subTOTAL: | K8: =SUM(K6:K7) -> 333900 | L8: =SUM(L6:L7) -> 1892100
D9: DODGE PICKUP - U.S. CONTENT: | E9: =E11-E10 -> 0.9 | F9: =E9*F11 -> 45900 | I9: Motor car | J9: 0.15 | K9: =F9*J9 -> 6885 | L9: =F9-K9 -> 39015
D10: ↑ ELIGIBLE FOREIGN CONTENT: | E10: 0.1 | F10: =E10*F11 -> 5100 | K10: =F10*J9 -> 765 | L10: =F10-K10 -> 4335
D11: SubTOTAL: | E11: 1 | F11: 51000 | I11: Front payment, subTOTAL: | K11: =SUM(K9:K10) -> 7650 | L11: =SUM(L9:L10) -> 43350
D12: TOTAL: | F12: =F8+F11 -> 2277000 | I12: Loan"B", TOTAL: | K12: =K8+K11 -> 341550 | L12: =L8+L11 -> 1935450 | N12: =SUM(K12:L12) -> 2277000
B13: B. u | C13: LOCAL COUNTRY COSTS u | F13: USD | I13: Payment Manner | K13: Advance | L13: Settlement
A14: * | G14: *
B15: Turnkey construction | F15: =Invest!P47 -> 449140 | J15: 0.15 | K15: =$F$15*J15 -> 67371 | L15: =F15-K15 -> 381769
B16: Architectural design of Mariner 2 | F16: 12000 | K16: =F16*J15 -> 1800 | L16: =F16-K16 -> 10200
B17: AAS*, financial model, risk assessment & online control | F17: =Invest!P48 -> 24000 | K17: =F17*J15 -> 3600 | L17: =F17-K17 -> 20400
B18: Set PC Lenovo / monitor Dell | F18: 3500 | K18: =F18*J15 -> 525 | L18: =F18-K18 -> 2975
D19: Local costs in the supply contract, TOTAL: | E19: =F19/F23 -> 0.1766824316 | F19: =SUM(F15:F18) -> 488640 | J19: Advance payment,* TOTAL: | K19: =SUM(K15:K18) -> 73296 | L19: =SUM(L15:L18) -> 415344 | N19: =SUM(K19:L19) -> 488640
B20: =Invest!C48 -> Advisory & Assistance Service and Software: | H20: These payments require warranties
B21: A.+B. | E21: LOAN "A" PURCHASE ORDER(S) u | F21: USD | K21: =K12+K19 -> 414846 | L21: =L12+L19 -> 2350794
D23: U.S. Supply Contracts, TOTAL: | F23: =F12+F19 -> 2765640 | K23: Net contract price financed: | L23: =SUM(L12+K19+L19) -> 2424090 | N23: =N12+N19 -> 2765640
B24: =Invest!D47 -> 24 | C24: homes | K24: Ex-Im Bank LOAN "A", TOTAL: | L24: =ROUNDUP(L23,-4) -> 2430000
B25: Accrued interest against political & commercial risks  | F25: =F24-F23 -> -2765640 | I25: Reserve | J25: Reserve  | L25: =L24-L23 -> 5910
B26: FINANCIAL COST, annual interest: | E26: 0.042 | F26: =E26+E27 -> 0.042
B27: Ex-Im Bank fees: commitment, facility, exposure: | E27: 0
B28: Other local costs (outside this Budget)  | F28: USD | H28: u DEPRECIATION ON ASSETS u | L28: USD
B30: Purchase of land sq.m. | D30: =Invest!F50 -> 30000 | E30: =Invest!G50 -> 40 | F30: =Invest!P54 -> 1638400 | I30: =I6 -> Homes & Cabins | J30: 0.15 | K30: =Invest!P43+Invest!P47 -> 2675140 | L30: =J30*K30 -> 401271
B31: Tax, p. sq.m. | D31: =Invest!O54 -> 32000 | E31: 5 | F31: =D31*E31*Invest!B45 -> 204800 | I31: Pickup motor car | J31: 0.13 | K31: =F10 -> 5100 | L31: =J31*K31 -> 663
B32: Cost of permits | D32: Total: | E32: Mos: | F32: =Invest!F48 -> 24000 | I32: KEY NOTE:
B33: =Invest!D74 -> 5 | C33: Personnel salaries & benefits | D33: =Invest!G74 -> 5140 | E33: =L2-K2 -> 6 | F33: =D33*E33 -> 30840 | I33: 1. Gradient fill effect | J33: XXX | K33: cells are in-put data recipients; contain first-involved figures.
E34: Other local country expemses. TOTAL: | F34: =SUM(F30:F33) -> 1898040 | I34: All the rest represemt computed results.
I35: 2. The note icons | J35: provide interactive URL-links to business dictionary.
I36: 3. The magnifier | J36: provide interactive absolute URL-links to external data sources.
I37: 4. The info icons | J37: provide references to the Project Executive Summary (memo/bizPlan).
I38: 5. The column and > | K38: table borders outline specific data-based areas.
I39: 6. Various font and background colors represent similar resource data.

Sheet Budget
A1: Part of Level 0  | B1: Exhibit A. | C1: Cash-flow | D1: Pro-forma Credit Application | H1: MARKETABLE PRICE LIST - Part of Level 0 | O1: SEASONAL TIME PRICING
A2: Level 2 Business Plan, Budget | B2: USD | G2: Rent of one-bed room home p. day and p. week (incl. daily welcome package) | M2: 1 | N2: =Invest!B45 -> 1.28
A3: =Cap.Goods!D23 -> U.S. Supply Contracts, TOTAL: | B3: =Cap.Goods!F23 -> 2765640 | G3: 01/01-04/30 | H3: 05/01-05/21 | I3: 05/22-06/11 | J3: 06/12-07/02 | K3: 07/03-08/27 | L3: 08/28-09/17 | M3: 09/18-10/15 | N3: 10/16-12/31 | O3: Weeks: | P3: Seasons:
A4: U.S. Content | B4: =ROUND((Cap.Goods!F6+Cap.Goods!F9),-1) -> 2170500 | F4: Weeks: | G4: 17 | H4: 3 | I4: 3 | J4: 3 | K4: 8 | L4: 3 | M4: 4 | N4: 11 | O4: =SUM(I4:L4) -> 17 | P4: Active weeks
A5: Eligible Foreign Content | B5: =ROUND((Cap.Goods!F7+Cap.Goods!F10),-1) -> 106500 | F5: Homes | G5: 40 | H5: 100 | I5: 200 | J5: 240 | K5: 300 | L5: 240 | M5: 80 | N5: 40 | O5: =SUM(M4:N4)+SUM(G4:H4) -> 35 | P5: Inactive weeks
A6: U.S. Export Value | B6: =ROUND((B4+B5),-2) -> 2277000 | F6: Prc p.Night | G6: =G$5*$N$2 -> 51.2 | H6: 128 | I6: 256 | J6: 307.2 | K6: 384 | L6: 307.2 | M6: 102.4 | N6: 51.2 | O6: =O4+O5 -> 52 | P6: Total weeks
A7: Cash Payment (Loan "B") | B7: =ROUND(Cap.Goods!K12,-2) -> 341600 | F7: min 1 week | G7: =G6*(1-$N$9) -> 50.688 | H7: =H6*(1-$N$9) -> 126.72 | I7: =I6*(1-$N$9) -> 253.44 | J7: 304.128 | K7: 380.16 | L7: 304.128 | M7: =M6*(1-$N$9) -> 101.376 | N7: =N6*(1-$N$9) -> 50.688 | O7: Prc with ann. inflation
A8: Net Contract Prc Financed | B8: =ROUND((B6-B7),-1) -> 1935400 | F8: per Home | G8: k | H8: 05/01-06/30 | J8: 07/01-08/31 | L8: 09/01-09/30 | N8: Ann. inflation
A9: Local Country Costs | B9: =ROUND(Cap.Goods!F19,-1) -> 488640 | J9: Rent of two-bed bungalow € p. day + extra small child bed | N9: =O9/100 -> 0.01 | O9: 1
A10: Ex-Im Bank Financed Amount | B10: =ROUND((B8+B9),-1) -> 2424040 | G10: Days: | H10: 21 | I10: 21 | J10: 27 | K10: 56 | L10: 21 | M10: 28 | N10: =SUM(H10:M10) -> 174
A11: Other Local Country Expenses | B11: =Cap.Goods!F34 -> 1898040 | F11: Bungalows | H11: 60 | I11: 150 | J11: 200 | K11: 220 | L11: 180 | M11: 50 | N11: 6 | O11: set-off
A12: TOTAL DEBT: | B12: =ROUND((B3+B11),-3) -> 4664000 | F12: Prc p.Night | H12: =H11*$N$2 -> 76.8 | I12: =I11*$N$2 -> 192 | J12: =J11*N2 -> 256 | K12: =K11*N2 -> 281.6 | L12: =L11*N2 -> 230.4 | M12: =M11*$N$2 -> 64 | N12: extra bed
A13: Level 2 | F13: per Room | G13: k | H13: =H12*(1-$N$9) -> 76.032 | I13: =I12*(1-$N$9) -> 190.08 | J13: 253.44 | K13: 278.784 | L13: 228.096 | M13: 63.36 | O13: Prc with ann. inflation
A14: End of Month: | B14: 0 | C14: 6 | D14: 12 | E14: 18 | F14: 24 | G14: =F14+6 -> 30 | H14: 36 | I14: 42 | J14: 48 | K14: 54 | L14: 60 | M14: 66 | N14: 72 | O14: 78 | P14: =O14+6 -> 84 | Q14: =P14+6 -> 90 | R14: 96
A15: Date : | B15: 2013-12-31 | C15: 2014-06-30 | D15: 2014-12-31 | E15: 2015-06-30 | F15: 2015-12-31 | G15: 2016-06-30 | H15: 2016-12-31 | I15: 2017-06-30 | J15: 2017-12-31 | K15: 2018-06-30 | L15: 2018-12-31 | M15: 2019-06-30 | N15: 2019-12-31 | O15: 2020-06-30 | P15: 2020-12-31 | Q15: 2021-06-30 | R15: 2021-12-31
A16: End of Period: | B16: 6 Mo | E16: 1 | F16: =E16+1 -> 2 | G16: =F16+1 -> 3 | H16: =G16+1 -> 4 | I16: 5 | J16: 6 | K16: 7 | L16: 8 | M16: 9 | N16: 10 | O16: 11 | P16: =O16+1 -> 12 | Q16: =P16+1 -> 13 | R16: 14
A17: Capital Investment: | B17: =SUM(C17:D17) -> 2765640 | C17: =SUM(C18:C19) -> 414846 | D17: =SUM(D18:D19) -> 2350794 | E17: =IF((B3-B17)=0,TRUE,FALSE) -> TRUE
A18: ¡ Ex-Im Bank Loan "A" | B18: =SUM(C18:D18) -> 2350794 | D18: =Cap.Goods!L21 -> 2350794
A19: ¡ Comm. Bank Loan "B" | B19: =ROUND(SUM(C19:D19),-1) -> 414850 | C19: =Cap.Goods!K21 -> 414846
A20: Sales: Homes: | B20: =Invest!D45 -> 11 | C20: =B20*(1-Bayes!P21/100) -> 10.549 | D20: =B20*L4*L7+C20*(M4*M7+N4*N7)*7 -> 81152.3497 | E20: =(C20*(G4*G7+H4*H7)+(B20+2)*(I4*I7+J4*J7))*7 -> 243918.4366 | F20: =((B20+2)*(K4*K7+L4*L7)+C20*(M4*M7+N4*N7))*7 -> 430899.5497 | G20: =E20 -> 243918.4366 | H20: =F20 -> 430899.5497 | I20: =G20 -> 243918.4366 | J20: =F20 -> 430899.5497 | K20: =I20 -> 243918.4366 | L20: 430899.5497 | M20: 243918.4366 | N20: 430899.5497 | O20: 243918.4366 | P20: =N20 -> 430899.5497 | Q20: =O20 -> 243918.4366 | R20: =P20 -> 430899.5497 | S20: =O20 -> 243918.4366 | T20: =SUM(D20:P20) -> 4130060.268
A21: OCCUPATION Bedrooms: | B21: =Invest!D46 -> 22 | C21: =B21*(1+Bayes!P21/100) -> 22.902 | D21: =B20*L10*L13+C20*M10*M13 -> 71404.94592 | E21: =B20*(H10*H13+I10*I13)+C20*J10*J13 -> 133657.4131 | F21: =B20*(K10*K13+L10*L13)+C20*M10*M13 -> 243135.8899 | G21: =E21 -> 133657.4131 | H21: =F21 -> 243135.8899 | I21: =G21 -> 133657.4131 | J21: 243135.8899 | K21: 133657.4131 | L21: 243135.8899 | M21: 133657.4131 | N21: 243135.8899 | O21: 133657.4131 | P21: =N21 -> 243135.8899 | Q21: 133657.4131 | R21: =P21 -> 243135.8899 | S21: =O21 -> 133657.4131 | T21: =SUM(D21:P21) -> 2332164.764
A22: TOTAL: | B22: more | D22: =SUM(D20:D21) -> 152557.2956 | E22: =SUM(E20:E21) -> 377575.8497 | F22: =SUM(F20:F21) -> 674035.4396 | G22: 377575.8497 | H22: 674035.4396 | I22: 377575.8497 | J22: 674035.4396 | K22: 377575.8497 | L22: 674035.4396 | M22: 377575.8497 | N22: 674035.4396 | O22: 377575.8497 | P22: 674035.4396 | Q22: 377575.8497 | R22: 674035.4396 | S22: =SUM(S20:S21) -> 377575.8497 | T22: =SUM(D22:P22) -> 6462225.032
A23: Less: Date: | B23: =B15 -> 2013-12-31 | C23: =C15 -> 2014-06-30 | D23: 2014-12-31 | E23: =E15 -> 2015-06-30 | F23: =F15 -> 2015-12-31 | G23: =G15 -> 2016-06-30 | H23: 2016-12-31 | I23: 2017-06-30 | J23: 2017-12-31 | K23: 2018-06-30 | L23: 2018-12-31 | M23: 2019-06-30 | N23: 2019-12-31 | O23: 2020-06-30 | P23: =P15 -> 2020-12-31 | Q23: =Q15 -> 2021-06-30 | R23: 2021-12-31 | S23: 00:00:00
A24: Costs, TOTAL (1¡ - 8) | C24: =C25+SUM(C32:C38) -> 0.032 | D24: 42897.05 | E24: 46686.82755 | F24: 445619.9863 | G24: 47373.70755 | H24: 386447.7965 | I24: 48392.16771 | J24: 336336.7949 | K24: 49443.21859 | L24: 293933.7348 | M24: 50527.90311 | N24: 258088.5462 | O24: 51647.29753 | P24: 227823.8658 | Q24: =Q25+SUM(Q32:Q38) -> 45888.41256 | R24: 197596.1522 | S24: =S25+SUM(S32:S38) -> -10101.48744
A25: 1) Remuneration of services (fixed costs) | D25: =SUM(D26:D31) -> 1800 | E25: =SUM(E26:E31) -> 3532.727549 | F25: =SUM(F26:F31) -> 4122.106319 | G25: 3232.727549 | H25: 4122.106319 | I25: 3232.727549 | J25: 4122.106319 | K25: 3232.727549 | L25: 4122.106319 | M25: 3232.727549 | N25: 4122.106319 | O25: 3232.727549 | P25: =SUM(P26:P31) -> 4122.106319 | Q25: =SUM(Q26:Q31) -> 3232.727549 | R25: 4122.106319 | S25: =SUM(S26:S31) -> -23767.27245
A26: ▪ Business trips, p.Mo: | B26: 150 | D26: =B26*(D14-C14) -> 900 | E26: =B26*(E14-D14) -> 900 | F26: =$B$26*(F14-E14) -> 900 | G26: 900 | H26: 900 | I26: 900 | J26: 900 | K26: 900 | L26: 900 | M26: 900 | N26: 900 | O26: 900 | P26: =$B$26*(P14-O14) -> 900 | Q26: =$B$26*(Q14-P14) -> 900 | R26: 900 | S26: =$B$26*(S14-P14) -> -12600
A27: ▪ Accounting,p.Mo: | B27: 100 | E27: =B27*(E14-D14) -> 600 | F27: =$B$27*(F14-E14) -> 600 | G27: 600 | H27: 600 | I27: 600 | J27: 600 | K27: 600 | L27: 600 | M27: 600 | N27: 600 | O27: 600 | P27: =$B$27*(P14-O14) -> 600 | Q27: =$B$27*(Q14-P14) -> 600 | R27: 600 | S27: =$B$27*(S14-P14) -> -8400
A28: ▪ GSM & Internet, p.Mo: | B28: 50 | D28: =B28*(D14-C14) -> 300 | E28: =B28*(E14-D14) -> 300 | F28: =$B$28*(F14-E14) -> 300 | G28: 300 | H28: 300 | I28: 300 | J28: 300 | K28: 300 | L28: 300 | M28: 300 | N28: 300 | O28: 300 | P28: =$B$28*(P14-O14) -> 300 | Q28: =$B$28*(Q14-P14) -> 300 | R28: 300 | S28: =$B$28*(S14-P14) -> -4200
A29: ▪ Fuel consuption bills, p.Mo: | B29: 100 | D29: =B29*(D14-C14) -> 600 | E29: =B29*(E14-D14) -> 600 | F29: =$B$28*(F14-E14) -> 300 | G29: =F29 -> 300 | H29: =G29 -> 300 | I29: =H29 -> 300 | J29: 300 | K29: 300 | L29: 300 | M29: 300 | N29: 300 | O29: 300 | P29: =O29 -> 300 | Q29: =P29 -> 300 | R29: 300 | S29: =P29 -> 300
A30: ▪ Washing & disinfectants, etc., p.Mo:
A31: ▪ Others-security, etc. as % of sales p.a. | B31: 0.003 | E31: =$B$31*E22 -> 1132.727549 | F31: =$B$31*F22 -> 2022.106319 | G31: =$B$31*G22 -> 1132.727549 | H31: 2022.106319 | I31: 1132.727549 | J31: 2022.106319 | K31: 1132.727549 | L31: 2022.106319 | M31: 1132.727549 | N31: 2022.106319 | O31: 1132.727549 | P31: 2022.106319 | Q31: =$B$31*Q22 -> 1132.727549 | R31: 2022.106319 | S31: 1132.727549
A32: 2) Depreciations | F32: =Cap.Goods!L30 -> 401271 | H32: =(Cap.Goods!K30-Budget!F32)*Cap.Goods!J30 -> 341080.35 | J32: =Cap.Goods!J30*(Cap.Goods!K30-Budget!F32-Budget!H32) -> 289918.2975 | L32: =Cap.Goods!J30*(Cap.Goods!K30-Budget!F32-Budget!H32-Budget!J32) -> 246430.5529 | N32: =Cap.Goods!J30*(Cap.Goods!K30-Budget!F32-Budget!H32-Budget!J32-Budget!L32) -> 209465.9699 | P32: =Cap.Goods!J30*(Cap.Goods!K30-Budget!F32-Budget!H32-Budget!J32-Budget!L32-Budget!N32) -> 178046.0745 | R32: =Cap.Goods!J30*(Cap.Goods!K30-Budget!F32-Budget!H32-Budget!J32-Budget!L32-Budget!N32-Budget!N32) -> 146626.179
A33: 3) Insurance policies, p.a.: | B33: 0.0025 | D33: =B33*Cap.Goods!F23/2 -> 3457.05 | E33: =B33*Cap.Goods!F23 -> 6914.1 | G33: =E33 -> 6914.1 | I33: =G33 -> 6914.1 | K33: =I33 -> 6914.1 | M33: =K33 -> 6914.1 | O33: =M33 -> 6914.1 | S33: =O33 -> 6914.1
A34: 4) Control system operation fee, p.Mo: | B34: 500 | D34: =B34*6 -> 3000 | E34: =$B$34*6 -> 3000 | F34: =$B$34*6 -> 3000 | G34: 3000 | H34: 3000 | I34: 3000 | J34: 3000 | K34: 3000 | L34: 3000 | M34: 3000 | N34: 3000 | O34: 3000 | P34: 3000 | Q34: 3000 | R34: 3000 | S34: =O34*(1+$C$35) -> 3096
A35: 5) Payroll personnel + ann. inflation set-off | B35: =Invest!G74 -> 5140 | C35: 0.032 | D35: =B35*(D14-C14) -> 30840 | E35: =$B$35*6 -> 30840 | F35: =B35*(1+$C$35)*6 -> 31826.88 | G35: =F35 -> 31826.88 | H35: =F35*(1+$C$35) -> 32845.34016 | I35: =H35 -> 32845.34016 | J35: =H35*(1+$C$35) -> 33896.39105 | K35: 33896.39105 | L35: 34981.07556 | M35: 34981.07556 | N35: 36100.46998 | O35: 36100.46998 | P35: =N35*(1+$C$35) -> 37255.68502 | Q35: =O35*(1+$C$35) -> 37255.68502 | R35: 38447.86694 | S35: =O35*(1+$C$35) -> 37255.68502
A36: 6) Annual tax of land & properties: | B36: 3000 | D36: =B36 -> 3000 | F36: =D36 -> 3000 | H36: =F36 -> 3000 | J36: =H36 -> 3000 | L36: =J36 -> 3000 | N36: =L36 -> 3000 | P36: =N36 -> 3000 | Q36: =O36 -> 0 | R36: 3000
A37: 7) Electricity consumption bill (var.), p.Mo: | B37: 300 | D37: =B37*2 -> 600 | E37: =$B$37*(E14-D14) -> 1800 | F37: 1800 | G37: 1800 | H37: 1800 | I37: 1800 | J37: 1800 | K37: 1800 | L37: 1800 | M37: 1800 | N37: 1800 | O37: 1800 | P37: =$B$37*(P14-O14) -> 1800 | Q37: =$B$37*(Q14-P14) -> 1800 | R37: 1800 | S37: =$B$37*(S14-P14) -> -25200
A38: 8) Water consumption bill (var. costs), p.Mo: | B38: 100 | D38: =B38*2 -> 200 | E38: =$B$38*(E14-D14) -> 600 | F38: 600 | G38: 600 | H38: 600 | I38: 600 | J38: 600 | K38: 600 | L38: 600 | M38: 600 | N38: 600 | O38: 600 | P38: =$B$38*(P14-O14) -> 600 | Q38: =$B$38*(Q14-P14) -> 600 | R38: 600 | S38: =$B$38*(S14-P14) -> -8400
A39: Cash Flows: | C39: =C22-C24 -> -0.032 | D39: 109660.2456 | E39: =E22-E24 -> 330889.0222 | F39: 228415.4533 | G39: 330202.1422 | H39: 287587.6431 | I39: 329183.682 | J39: 337698.6448 | K39: 328132.6311 | L39: 380101.7049 | M39: 327047.9466 | N39: 415946.8934 | O39: 325928.5522 | P39: 446211.5738 | Q39: =Q22-Q24 -> 331687.4372 | R39: 476439.2874 | S39: 387677.3372
A40: Less: Interests, loans "A" | E40: =-E70 -> -49367 | F40: =-F70 -> -43418 | G40: -37738 | H40: -32350 | I40: -27276 | J40: -22542 | K40: -18174 | L40: -14199 | M40: -10646 | N40: -7545 | O40: -4929 | P40: =-P70 -> -2830 | Q40: =-Q70 -> -1284 | R40: -328
A41: Interests, Loan "B" bonds (independent computing) | C41: =-C76 -> -12445.38 | D41: =-D76 -> -12445.38 | E41: =-E76 -> -12445 | F41: =-F76 -> -10544 | G41: -8748 | H41: -7072 | I41: -5528 | J41: -4134 | K41: -2903 | L41: -1855 | M41: -1009 | N41: -383 | O41: -79511.76
A42: EBT | D42: =D39+D40+D41 -> 97214.86562 | E42: =E39+E40+E41 -> 269077.0222 | F42: =F39+F40 -> 184997.4533 | G42: =G39+G40 -> 292464.1422 | H42: 255237.6431 | I42: 301907.682 | J42: 315156.6448 | K42: 309958.6311 | L42: 365902.7049 | M42: 316401.9466 | N42: 408401.8934 | O42: 320999.5522 | P42: =P39+P40 -> 443381.5738 | Q42: =Q39+Q40 -> 330403.4372 | R42: 476111.2874 | S42: =S39+S40 -> 387677.3372
A43: Less: Income tax | B43: 0.25 | D43: =$B$43/2*D42 -> 12151.8582 | E43: =$B$43/2*E42 -> 33634.62777 | F43: =$B$43/2*F42 -> 23124.68166 | G43: 36558.01777 | H43: 31904.70539 | I43: 37738.46025 | J43: 39394.58059 | K43: 38744.82889 | L43: 45737.83811 | M43: 39550.24333 | N43: 51050.23667 | O43: 40124.94403 | P43: =$B$43/2*P42 -> 55422.69673 | Q43: =$B$43/2*Q42 -> 41300.42965 | R43: 59513.91093 | S43: =$B$43/2*S42 -> 48459.66715
A44: Advance deposit
A45: EAT | D45: =D42-(D43+D44) -> 85063.00741 | E45: =E42-(E43+E44) -> 235442.3944 | F45: =F42-(F43+F44) -> 161872.7716 | G45: 255906.1244 | H45: 223332.9377 | I45: 264169.2218 | J45: 275762.0642 | K45: 271213.8022 | L45: 320164.8668 | M45: 276851.7033 | N45: 357351.6567 | O45: 280874.6082 | P45: =P42-(P43+P44) -> 387958.8771 | Q45: =Q42-(Q43+Q44) -> 289103.0075 | R45: 416597.3765 | S45: =S42-(S43+S44) -> 339217.67
A46: Add: Total depreciations | C46: TIME ZERO — NEGATIVE PROJECT CASH FLOW | F46: =F32 -> 401271 | H46: =H32 -> 341080.35 | J46: =J32 -> 289918.2975 | L46: =L32 -> 246430.5529 | N46: =N32 -> 209465.9699 | P46: =P32 -> 178046.0745 | Q46: =Q32 -> 0 | R46: 146626.179
A47: Add: Tax advance deposited drawn back
A48: ► Operating Cash Flows | D48: =SUM(D45:D47) -> 85063.00741 | E48: =SUM(E45:E47) -> 235442.3944 | F48: =SUM(F45:F47) -> 563143.7716 | G48: 255906.1244 | H48: 564413.2877 | I48: 264169.2218 | J48: 565680.3617 | K48: 271213.8022 | L48: 566595.4196 | M48: 276851.7033 | N48: 566817.6266 | O48: 280874.6082 | P48: =SUM(P45:P47) -> 566004.9516 | Q48: =SUM(Q45:Q47) -> 289103.0075 | R48: 563223.5554 | S48: =SUM(S45:S47) -> 339217.67
A49: Less: Capital investment | C49: =-C17 -> -414846 | D49: =-D17 -> -2350794
A50: ► Project's Net Cash Flows (NCFs) | C50: =C48+C49 -> -414846 | D50: =D48+D49 -> -2265730.993 | E50: =E48+E49 -> 235442.3944 | F50: =F48+F49 -> 563143.7716 | G50: 255906.1244 | H50: 564413.2877 | I50: 264169.2218 | J50: 565680.3617 | K50: 271213.8022 | L50: 566595.4196 | M50: 276851.7033 | N50: 566817.6266 | O50: 280874.6082 | P50: =P48+P49 -> 566004.9516 | Q50: =Q48+Q49 -> 289103.0075 | R50: 563223.5554 | S50: =S48+S49 -> 339217.67
A51: Less: Principal installments, Loan "A" | E51: =-E71 -> -146183 | F51: =-F71 -> -149253 | G51: =-G71 -> -152387 | H51: -155587 | I51: -158854 | J51: -162190 | K51: -165596 | L51: -169074 | M51: -172624 | N51: -176250 | O51: -179951 | P51: =-P71 -> -183730 | Q51: =-Q71 -> -187588 | R51: -191527
A52: Less: Principal installments, Loan "B" | E52: =-E77 -> -29798 | F52: =-F77 -> -30692 | G52: -31613 | H52: -32561 | I52: -33538 | J52: -34544 | K52: -35580 | L52: -36648 | M52: -37747 | N52: =-N77 -> -38880 | O52: =-O77 -> -341601
A53: Cash | C53: =C50+C51+C52 -> -414846 | D53: =D50+D51+D52 -> -2265730.993 | E53: =E50+E51 -> 89259.39441 | F53: =F50+F51 -> 413890.7716 | G53: 103519.1244 | H53: 408826.2877 | I53: 105315.2218 | J53: 403490.3617 | K53: 105617.8022 | L53: 397521.4196 | M53: 104227.7033 | N53: 390567.6266 | O53: 100923.6082 | P53: =P50+P51 -> 382274.9516 | Q53: =Q50+Q51 -> 101515.0075 | R53: 371696.5554 | S53: =S50+S51 -> 339217.67
A54: Cumulate NCFs (loan pay-off incl.) | C54: =C50 -> -414846 | D54: =C54+D53 -> -2680576.993 | E54: =D54+E53 -> -2591317.598 | F54: =E54+F53 -> -2177426.827 | G54: =F54+G53 -> -2073907.702 | H54: -1665081.414 | I54: -1559766.193 | J54: -1156275.831 | K54: -1050658.029 | L54: -653136.6091 | M54: -548908.9058 | N54: -158341.2792 | O54: =N54+O53 -> -57417.67098 | P54: =O54+P53 -> 324857.2806 | Q54: =P54+Q53 -> 426372.2881 | R54: 798068.8435 | S54: =P54+S53 -> 664074.9506
B55: Years: | E55: 1 | F55: =E55+1 -> 2 | G55: =F55+1 -> 3 | H55: 4 | I55: 5 | J55: 6 | K55: 7 | L55: 8
A56: 1-Yr period Operating Cash Flows | C56: Up front investment: | E56: =C50+D50 -> -2680576.993 | F56: =E50+F50 -> 798586.166 | G56: =G50+H50 -> 820319.4122 | H56: =I50+J50 -> 829849.5834 | I56: =K50+L50 -> 837809.2219 | J56: =M50+N50 -> 843669.3299 | K56: =O50+P50 -> 846879.5597 | L56: =Q50+R50 -> 852326.563
A57: Exhibit B | J57: Exhibit C | O57: Go to Bayes  | P57: 
A58: Discount Cash Flow Model | C58: Section | G58: Section | L58: Section "SENSITIVITY ANALYSIS"
B59: MEASURING PROFITABILITY | G59: PAYBACK PERIOD | J59: Simulation of A1 activity | M59: Simulation of A2 activity
A60: Discount (hurdle) rate : | B60: 0.12 | C60: Loan Life Coverage Ratio: | G60: METHOD | K60: Occupation | L60: =IF((K61+M61)/100<121%,"","STOP") ->  | M60: Occupation
A61: Net Present Value (NPV for CADS) : | B61: =NPV(B60,E56:K56) -> 640437.1499 | C61: LLCR= | D61: =B61/B68 -> 0.2724343987 | F61: Period: | G61: =F73+ROUNDDOWN(E106,0) -> 7 | H61: =H106 -> 6 | J61: =IF(AND(K61<35,M61>45)," Change the agency now","") ->  | K61: 55 | L61: =IF((K61+M61)/100<121%,(K61+M61)/100,"120%") -> 1.05 | M61: 50 | N61: =IF(AND(K61>44,M61<31)," Change the agency now","") -> 
A62: IRR : | B62: =IRR(E56:K56) -> 0.2091065861 | F62: Date: | G62: =C106 -> 2019-12-31 | H62: earliness | L62: =IF(AND(K61<31,M61<31),"M","") -> 
G63: Accelerated amortization of loans | J63: =IF(AND(K61<36,M61>58)," This agency is dud!","") ->  | M63: =IF(AND(K61>58,M61<35)," This agency is dud!","") -> 
A64: .docx format - for more detaIs | J64: =IF(AND(K61<36,M61<31),"EVENT FOR CRITICAL ANNOUNCEMENT","") -> 
A65: =A14 -> End of Month: | B65: 0 | C65: 6 | D65: 12 | E65: =E14 -> 18 | F65: 24 | G65: 30 | H65: 36 | I65: 42 | J65: 48 | K65: 54 | L65: 60 | M65: 66 | N65: 72 | O65: 78 | P65: 84
A66: =A15 -> Date : | B66: 2013-12-31 | C66: 2014-06-30 | D66: 2014-12-31 | E66: =#REF! ->  | F66: =E15 -> 2015-06-30 | G66: 2015-12-31 | H66: 2016-06-30 | I66: 2016-12-31 | J66: 2017-06-30 | K66: 2017-12-31 | L66: 2018-06-30 | M66: 2018-12-31 | N66: 2019-06-30 | O66: 2019-12-31 | P66: =O15 -> 2020-06-30
A67: Number of Periods: | B67: =MATCH(50,E67:R67) -> 14 | E67: =E16 -> 1 | F67: 2 | G67: 3 | H67: 4 | I67: 5 | J67: 6 | K67: 7 | L67: 8 | M67: 9 | N67: 10 | O67: 11 | P67: 12 | Q67: 13 | R67: 14
A68: º» Ex-Im Bank LOAN "A" | B68: =B18 -> 2350794
A69: 6-Mo Balance liabilities | C69: =C18 -> 0 | D69: =C69+D18 -> 2350794 | E69: =D69-D71 -> 2350794 | F69: =E69-E71 -> 2204611 | G69: =F69-F71 -> 2055358 | H69: =G69-G71 -> 1902971 | I69: =H69-H71 -> 1747384 | J69: 1588530 | K69: 1426340 | L69: 1260744 | M69: 1091670 | N69: 919046 | O69: 742796 | P69: =O69-O71 -> 562845 | Q69: =P69-P71 -> 379115 | R69: =Q69-Q71 -> 191527
A70: 6-Mo Interest payment | B70: =Cap.Goods!F26 -> 0.042 | C70: TIME ZERO - INVESTMENT PERIOD | E70: =-ROUND(IPMT($B$70/2,E67,$B$67,E69),0) -> 49367 | F70: =-ROUND(IPMT($B$70/2,F67,$B$67,F69),0) -> 43418 | G70: 37738 | H70: 32350 | I70: 27276 | J70: 22542 | K70: 18174 | L70: 14199 | M70: 10646 | N70: 7545 | O70: 4929 | P70: =-ROUND(IPMT($B$70/2,P67,$B$67,P69),0) -> 2830 | Q70: =-ROUND(IPMT($B$70/2,Q67,$B$67,Q69),0) -> 1284 | R70: 328 | S70: =ROUND(SUM(E70:P70),-1) -> 271010
A71: 6-Mo Principal installments | E71: =-ROUND(PPMT($B$70/2,E67,$B$67,$B$68),0) -> 146183 | F71: =-ROUND(PPMT($B$70/2,F67,$B$67,$B$68),0) -> 149253 | G71: 152387 | H71: 155587 | I71: 158854 | J71: 162190 | K71: 165596 | L71: 169074 | M71: 172624 | N71: 176250 | O71: 179951 | P71: 183730 | Q71: 187588 | R71: 191527 | S71: =ROUND(SUM(E71:R71),-1) -> 2350790
A72: Installments, TOTAL: | E72: =SUM(E70:E71) -> 195550 | F72: 192671 | G72: 190125 | H72: 187937 | I72: 186130 | J72: 184732 | K72: 183770 | L72: 183273 | M72: 183270 | N72: 183795 | O72: 184880 | P72: =SUM(P70:P71) -> 186560 | S72: =ROUND(SUM(E72:P72),-1) -> 2242690
A73: =A67 -> Number of Periods: | B73: =MATCH(50,E73:N73) -> 10 | E73: =E67 -> 1 | F73: 2 | G73: 3 | H73: 4 | I73: 5 | J73: 6 | K73: 7 | L73: 8 | M73: 9 | N73: 10
A74: º» Comm. Bank LOAN "B" | B74: =B7 -> 341600 | C74: =C14 -> 6 | D74: 12 | E74: =E14 -> 18 | F74: 24 | G74: 30 | H74: 36 | I74: 42 | J74: 48 | K74: 54 | L74: 60 | M74: 66 | N74: 72
A75: 6-Mo Balance liabilities | B75: =B19 -> 414850 | C75: =C19 -> 414846 | D75: =C75+D19 -> 414846 | E75: =D75-D77 -> 414846 | F75: =E75-E77 -> 385048 | G75: =F75-F77 -> 354356 | H75: =G75-G77 -> 322743 | I75: =H75-H77 -> 290182 | J75: 256644 | K75: 222100 | L75: 186520 | M75: 149872 | N75: 112125
A76: 6-Mo Interest payment | B76: 0.06 | C76: =B76/12*C65*C75 -> 12445.38 | D76: =B76/12*(D65-C65)*D75 -> 12445.38 | E76: =-ROUND(IPMT($B$76/2,E73,$B$73,D75),0) -> 12445 | F76: =-ROUND(IPMT($B$76/2,F73,$B$73,F75),0) -> 10544 | G76: 8748 | H76: 7072 | I76: 5528 | J76: 4134 | K76: 2903 | L76: 1855 | M76: 1009 | N76: 383 | O76: =SUM(C76:N76) -> 79511.76
A77: 6-Mo Principal installments | E77: =-ROUND(PPMT($B$76/2,E73,B73,B74),0) -> 29798 | F77: =-ROUND(PPMT($B$76/2,F73,$B$73,$B$74),0) -> 30692 | G77: =-ROUND(PPMT($B$76/2,G73,$B$73,$B$74),0) -> 31613 | H77: =-ROUND(PPMT($B$76/2,H73,$B$73,$B$74),0) -> 32561 | I77: =-ROUND(PPMT($B$76/2,I73,$B$73,$B$74),0) -> 33538 | J77: 34544 | K77: 35580 | L77: 36648 | M77: 37747 | N77: 38880 | O77: =SUM(E77:N77) -> 341601
A78: Installments, TOTAL: | C78: =SUM(C76:C77) -> 12445.38 | D78: =SUM(D76:D77) -> 12445.38 | E78: =SUM(E76:E77) -> 42243 | F78: =SUM(F76:F77) -> 41236 | G78: =SUM(G76:G77) -> 40361 | H78: =SUM(H76:H77) -> 39633 | I78: 39066 | J78: 38678 | K78: 38483 | L78: 38503 | M78: 38756 | N78: 39263 | O78: =SUM(C78:N78) -> 421112.76
A80: GRAPHS | C80: 1 | D80: =C80+1 -> 2 | E80: =D80+1 -> 3 | F80: 4 | G80: 5 | H80: 6 | I80: 7 | J80: 8 | K80: 9 | L80: 10 | M80: 11 | N80: 12 | O80: 13 | P80: =O80+1 -> 14 | Q80: =P80+1 -> 15 | R80: 16
A81: Total balance liabilities, Loan "A" | C81: =C69 -> 0 | D81: =D69 -> 2350794 | E81: =E69 -> 2350794 | F81: 2204611 | G81: 2055358 | H81: 1902971 | I81: 1747384 | J81: 1588530 | K81: 1426340 | L81: 1260744 | M81: 1091670 | N81: 919046 | O81: 742796 | P81: =P69 -> 562845 | Q81: =Q69 -> 379115 | R81: 191527
A82: Total balance liabilities, Loans "A"+"B" | C82: =C69+C75 -> 414846 | D82: 2765640 | E82: 2765640 | F82: 2589659 | G82: 2409714 | H82: 2225714 | I82: 2037566 | J82: 1845174 | K82: 1648440 | L82: 1447264 | M82: 1241542 | N82: 1031171 | O82: 742796 | P82: 562845 | Q82: =Q69+Q75 -> 379115 | R82: 191527
A83: Cash | C83: =C53 -> -414846 | D83: =D53 -> -2265730.993 | E83: 89259.39441 | F83: 413890.7716 | G83: 103519.1244 | H83: 408826.2877 | I83: 105315.2218 | J83: 403490.3617 | K83: 105617.8022 | L83: 397521.4196 | M83: 104227.7033 | N83: 390567.6266 | O83: 100923.6082 | P83: 382274.9516 | Q83: =Q53 -> 101515.0075 | R83: 371696.5554
A84: Cash Cumulative | C84: =C83 -> -414846 | D84: =C84+D83 -> -2680576.993 | E84: =D84+E83 -> -2591317.598 | F84: =E84+F83 -> -2177426.827 | G84: -2073907.702 | H84: -1665081.414 | I84: -1559766.193 | J84: -1156275.831 | K84: -1050658.029 | L84: -653136.6091 | M84: -548908.9058 | N84: -158341.2792 | O84: -57417.67098 | P84: =O84+P83 -> 324857.2806 | Q84: =P84+Q83 -> 426372.2881 | R84: 798068.8435
A85: Operating cash cumulative | C85: =D105 -> 85063.00741 | D85: =E105 -> 320505.4018 | E85: =F105 -> 883649.1735 | F85: 1139555.298 | G85: 1703968.586 | H85: 1968137.807 | I85: 2533818.169 | J85: 2805031.971 | K85: 3371627.391 | L85: =M105 -> 3648479.094 | M85: 4215296.721 | N85: 4496171.329 | O85: =P105 -> 5062176.281 | P85: =Q105 -> 5351279.288 | Q85: =R105 -> 5914502.844 | R85: 0
B102: Debt Rate | C102: =C82/$B$12 -> 0.08894639794 | D102: 0.5929759863 | E102: 0.5929759863 | F102: 0.555244211 | G102: 0.5166625214 | H102: 0.4772114065 | I102: 0.4368709262 | J102: 0.3956204974 | K102: 0.3534391081 | L102: 0.3103053173 | M102: 0.2661968268 | N102: 0.2210915523 | O102: 0.159261578 | P102: 0.1206786021
A103: =A12 -> TOTAL DEBT: | B103: =$B$12 -> 4664000
A104: Auxiliary raws: Crossing point of cash and debt | D104: Nr of 6-Mo periods: | E104: 1 | F104: =E104+1 -> 2 | G104: =F104+1 -> 3 | H104: 4 | I104: 5 | J104: 6 | K104: 7 | L104: 8 | M104: 9 | N104: 10 | O104: 11 | P104: =O104+1 -> 12 | Q104: =P104+1 -> 13 | R104: 14
A105: Payback > cumulate OCFs | B105: =MATCH(B103,E105:P105) -> 11 | D105: =D48 -> 85063.00741 | E105: =D105+E48 -> 320505.4018 | F105: =E105+F48 -> 883649.1735 | G105: 1139555.298 | H105: 1703968.586 | I105: 1968137.807 | J105: 2533818.169 | K105: 2805031.971 | L105: 3371627.391 | M105: 3648479.094 | N105: 4215296.721 | O105: 4496171.329 | P105: =O105+P48 -> 5062176.281 | Q105: =P105+Q48 -> 5351279.288 | R105: 5914502.844
A106: repayment estimation row | C106: =CHOOSE(B105,E66,F66,G66,H66,I66,J66,K66,L66,M66,N66,O66,P66) -> 2019-12-31 | D106: =B105*6 -> 66 | E106: =D106/12 -> 5.5 | F106: =ROUNDUP(E106,0) -> 6 | G106: =F106-E106 -> 0.5 | H106: =G106*12 -> 6
A107: auxiliary row | D107: =(C106-D66)/12 -> 152.1666667 | E107: =ROUNDDOWN(D107,0) -> 152 | F107: =D107-E107 -> 0.1666666667 | G107: =F107*12 -> 2 | H107: =IF(G107=12,E107+1,E107) -> 152 | I107: =IF(G107=12,0,G107) -> 2

Sheet Bayes
B1: DECISION ANALYSES | L1: Name of Project
B2: POSTERIOR PROBABILITIES OF TWO EVENTS | I2: Level 4 | L2: Project: SEA RESORT
A4: Background: | B4: Condition: You are a service provider holiday on the beach of Corfu, where you have one local and one foreign agent, and they do not connect each other in any way.
A5: Historical Info: | B5: Enter new data below  from | D5: . If the events of interest (your agents) are more then 2 up to 5, get started next spreadsheet  | L5: 5 events
A7: Event A1 supplied QUANTITY: | B7: Agent A1 (booking) | C7: =IF(Budget!L61>120,Budget!K61*120%/(Budget!K61+Budget!M61),Budget!K61/100) -> 0.55 | D7: Percentage Good event (G) supplied to | H7: The mutually exclusive events for which posterior probabilities are desired.
L8: My event:
A9: Event A2 supplied QUANTITY: | B9: Agent A2 (booking) | C9: =IF(Budget!L61>120,Budget!M61*120%/(Budget!K61+Budget!M61),Budget!M61/100) -> 0.5 | D9: Percentage Good event (G) supplied to | G9: prior bad probability | H9: Two stage development investment project for log homes village on the east coast of Corfu with option for expansion
H10: The periodic services, provided byy Agent Ai raises randomly. Bad trade by A1 ∩ A2 Agents may cause respective.decline in revenue and increase of the default risk of the business. What is the probability the causer to be A1 U A2 Agent? And if the posterior probability one only Agent A2 to be indicated of doind partially bad trade, his raised index reduces next period quantities till his prompt qualification or change.
A11: Event A1 sold QUALITY: | B11: Agent A1 (booking) | C11: 0.98 | D11: Percentage Good event (G) sold products and paid off
A13: Event A2 sold QUALITY: | B13: Agent A2 (booking) | C13: 0.94 | D13: Percentage Good event (G) sold products and paid off
Q14: Go to Budget
A15: Safe Event | C15: QUALITY AGENCY EVENTS | E15: PRIOR PROBABILITY | G15: POSTERIOR | K15: TABULAR APPROACH
A16: Restore Model | B16: When U pay - cry | C16: Percentage Good Intervention (G) | D16: Percentage Bad Intervention (B) | E16: QUANTITY % from A1∩A2 Agents | G16: PROBABILITIES that Bad Part of agency is: | K16: A1U A2 Prior Probabilities | L16: B Conditional Probabilities | M16: Joint Bad A1,2 ∩B | N16: Posterior Probabilities | P16: Others cry
A18: Clean Model | B18: Agent A1 | C18: =C7*100 -> 55 | D18: =100%-C11 -> 0.02 | E18: =C11*100 -> 98 | G18: From Agent A1: | I18: =D18*C7/(D18*C7+D20*C9) -> 0.2682926829 | K18: =C18/100 -> 0.55 | L18: =D18 -> 0.02 | M18: =K18*L18 -> 0.011 | N18: =M18/M21 -> 0.2682926829
B20: Agent A2 | C20: =C9*100 -> 50 | D20: =100%-C13 -> 0.06 | E20: =100-E18 -> 2 | G20: From Agent A2: | I20: =(100%-C13)*C9/((100%-C11)*C7+(100%-C13)*C9) -> 0.7317073171 | K20: =C20/100 -> 0.5 | L20: =D20 -> 0.06 | M20: =K20*L20 -> 0.03 | N20: =M20/M21 -> 0.7317073171
A21: ANALYSIS: | B21: On relative basis the probability of the Bad event, coming from A2, is expected [ | F21: =N20 -> 0.7317073171 | G21: ] compared [ | H21: =N18 -> 0.2682926829 | I21: ] from Agent 1. | K21: =SUM(K18:K20) -> 1.05 | L21: To the new info given each event | M21: =SUM(M18:M20) -> 0.041 | N21: =SUM(N18:N20) -> 1 | P21: =(M21*1+O21*1)*100 -> 4.1
B22: There is a greater likelihood the Bad event to happen whereat the outcome [ | F22: =M20 -> 0.03 | G22: ] following [ | H22: =L20/10 -> 0.006 | I22: ] A2's Bad agency to be a crash. | M22: Overall<probability of happen Bad event
A24: CLOSING: | B24: In this Chapter is applied Bayes' theorem used extensively in decision analysis of already made Risk Assessment, where the prior probabilities were subjective estimates requiring this specialized audit. The information and posterior probabilities are computed for use of a more objective presentation of the level of the risk of an event and its complement.
A26: Constructed using "Quantitative Methods for Business" (Fifth edition); David R. Anderson, University of Cincinnati, Dennis J. Sweeney, University of Cincinnati, Thomas A. Williams, Rochester Institute of Technology; Library of Congress Cataloging-in-Publication Data.
A29: COMMENTS: | B29: It is well known, and certainly recommendable that to start an investment project the investor (and his team making Inside Risk Expertise) must be convinced, must believe in the good end, and he must act decisively, without any hesitation. Very often, this reflects in low assessment of the Default Risk Ratio (d--Factor) that is raising its real impact. In such cases we approach the above probability estimation, often called “what-if” expertise. It follows the High Qualified Audit, in this program recognized as Group D).
B32: Sample of comments of our clients in this issue: ". . . default risk assessment is the starting point, most frequently happened to us for argue with the lenders, very often ending with denial of funding, no matter what the reason has been finally stated. Look at the picture below, which is the most popular example of visible delusion.
C35: We are looking out to the markets, and don’t see a big risk to get unable to pay back out debt. | K35: Who is right, when the lengths of the lines are equal? . . . "
C37: The lenders are only looking within ourselves, see plenty of risks and talk only about that.
B39: In decision making for new investments never believe and follow: ① your intuition, based on long-term experience; ② suggestions of high level experts; and ③ chance of occurring.
B40: Rely only on Risk Assessment and computing of prior and posterior probability of specific events of interest. Once you have them, return to the above approaches for final decision.
B41: Admission of the Default Risk (d ) assessment is a key factor for positive resolution of a loan application. The system, called OCFCS (for short), that we recommend, is an instrument that serves post factum an in-vestment in development providing current information to the lender, insurer and to the investor. Intention for its implementation is positive influence, but not critical.
A45: RECORD: | B45: PROJECT NAME | D45: QUALITY | F45: QUANTITY | H45: The event . . .
B46: (or Investor Name) | D46: AGENT A1 | E46: AGENT A2 | F46: AGENT A1
C47: =L2 -> Project: SEA RESORT | D47: 0.98 | E47: 0.95 | G47: 0.65 | H47: Agents distribute in their countries these percentages of KEM's products.
A49: Keep these h cells free for longer project name extention

Sheet Invest
B1: Level 5 | C1: Ordered | E1: CATALOG | H1: SELLING Prc CIF, USD | L1: U.S. CONTENT | N1: FOREIGN CONTENT | P1: TOTAL | R1: This is Mariner | W1: Project | AA1: RUN NEXT 
A2: Nr | C2: Plans | D2: Nr | E2: Sq Ft | F2: m2 | G2: Prc/m2 Avrg | H2: 0 | I2: Luxury | J2: 1 | K2: Good | L2: USD | M2: % | N2: Single | O2: Total | P2: U.S. Export | R2: 10.76 | X2: Save in 
A3: 1 | B3: To see customization click the home > | C3: more | D3: =H3+J3 -> 3 | E3: 972 | F3: =E3/$R$2 -> 90.33457249 | G3: =(I3+K3)/2/F3 -> 774.8971193 | H3: 1 | I3: 82000 | J3: 2 | K3: 58000 | L3: =H3*(I3-N3)+J3*(K3-N3) -> 185400 | M3: =1-O3 -> 0.9381833474 | N3: 4200 | O3: =(N3/I3+N3/K3)/2 -> 0.06181665265 | P3: =I3*H3+J3*K3 -> 198000 | R3: 1
C4: Stories: | D4: 1 | E4:  HOST COUNTRY EXPENSES  | R4:  Home numbers
C5: Baths: | D5: 2 | I5: TURNKEY (single) | M5: Site work | N5: TOTAL HOST COUNTRY | P5: SUB-TOTAL | R5: R Select number of homes.
C6: Bedrooms: | D6: 2 | E6: Basement | F6: Foundation | G6: Building | I6: Rough el. | K6: Others | L6: Rough plumb. | M6: (suitably) | N6: Single | O6: % | P6: USD | R6: R Go to button to enter the selected number for specific type of home and quality level.
C7: W15.2 x D 9.7 | D7: m | E7: 0 | F7: 300 | G7: 2000 | I7: 600 | L7: 600 | M7: =D3*F3*$M$57/F43 -> 4630.155362 | N7: =SUM(F7:M7) -> 8130.155362 | O7: =N7/K3 -> 0.1401750925 | P7: =D3*N7+E7 -> 24390.46609 | R7: R Click the button for Luxury or Good quality. | AC7: OPERATING INSTRUCTIONS
C8: Customized option: | E8: Living room to be divided into 2 parts. Rear and part of the kitchen to form a second bedroom with | N8: Gross profit: | O8: =E58 -> 0.6 | R8: 0 | AC8: Select raw with the desired
E9: bath. French windows and a sliding door for direct connection with the porch. | O9: (Suggested price) For sale: | P9: =ROUNDDOWN(Budget!$B$12*Invest!F3/Invest!$F$43*(1+$O$8),-3) -> 248000 | R9: 1 | S9: 2 | T9: 1 | U9: 3 | V9: 1 | W9: 3 | X9: 1 | Y9: 10 | Z9: 1 | AA9: 1 | AC9: number and types of homes
C10: ~ To see customization click home icons | R10: 1 | S10: 2 | T10: 1 | U10: 3 | V10: 1 | W10: 3 | X10: 1 | Y10: 10 | Z10: 1 | AA10: 1 | AB10: 2226000
A11: 2 | B11: To see customization click the home icon > | C11: Ordered | E11: CATALOG | H11: SELLING Prc CIF, USD | L11: U.S. CONTENT | N11: FOREIGN CONTENT | P11: TOTAL
C12: Plans | D12: Nr | E12: Sq Ft | F12: m2 | G12: Prc/m2 Avrg | H12: 1 | I12: Luxury | J12: 1 | K12: Good | L12: USD | M12: % | N12: USD | O12: % | P12: U.S. Export
C13: more | D13: =H13+J13 -> 4 | E13: 1146 | F13: =E13/$R$2 -> 106.5055762 | G13: =(I13+K13)/2/F13 -> 774.6073298 | H13: 1 | I13: 97000 | J13: 3 | K13: 68000 | L13: =H13*(I13-N13)+J13*(K13-N13) -> 284200 | M13: =1-O13 -> 0.9474681625 | N13: 4200 | O13: =(N13/I13+N13/K13)/2 -> 0.05253183748 | P13: =I13*H13+J13*K13 -> 301000
C14: Stories: | D14: 1 | E14:  HOST COUNTRY EXPENSES 
C15: Baths: | D15: 1 | I15: TURNKEY (single) | M15: Site work | N15: TOTAL HOST COUNTRY | P15: SUB-TOTAL
C16: Bedrooms: | D16: 2 | E16: Basement | F16: Foundation | G16: Building | I16: Rough el. | K16: Others | L16: Rough plumb. | M16: (suitably) | N16: Single | O16: % | P16: USD
C17: W12.2 x D 9.1 | D17: m | E17: 600 | F17: 300 | G17: 2100 | I17: 600 | L17: 600 | M17: =D13*F13*$M$57/$F$43 -> 7278.680446 | N17: =SUM(F17:M17) -> 10878.68045 | O17: =N17/I13 -> 0.1121513448 | P17: =D13*N17+E17 -> 44114.72178
C18: Garage Bay: ↓ | E18: A porch 4 m depth might be developed right-hand site to the door in front of the GREAT MR with a | O18: Gross profit:
C19: Option: to be added | E19: door entrance on right, or does a front window option possible, French windows and | O19: (Suggested price) For sale: | P19: =ROUNDDOWN(Budget!$B$12*Invest!F13/Invest!$F$43*(1+E58),-3) -> 292000
C20: on the back side | E20: a sliding door for direct connection with the porch in the same depth. Low roofline extended to the right end.
A21: 3 | B21: Two Bed Mediterranean | C21: Ordered | E21: CATALOG | H21: SELLING Prc CIF, USD | L21: U.S. CONTENT | N21: FOREIGN CONTENT | P21: TOTAL
C22: Plans | D22: Nr | E22: Sq Ft | F22: m2 | G22: Prc/m2 Avrg | H22: 0 | I22: Luxury | J22: 1 | K22: Good | L22: USD | M22: % | N22: USD | O22: % | P22: U.S. Export
C23: more | D23: =H23+J23 -> 4 | E23: 1507 | F23: =E23/$R$2 -> 140.0557621 | G23: =(I23+K23)/2/F23 -> 1035.301924 | H23: 1 | I23: 160000 | J23: 3 | K23: 130000 | L23: =H23*(I23-N23)+J23*(K23-N23) -> 530000 | M23: =1-O23 -> 0.9651442308 | N23: 5000 | O23: =(N23/I23+N23/K23)/2 -> 0.03485576923 | P23: =I23*H23+J23*K23 -> 550000
C24: Stories: | D24: 1 | E24:  HOST COUNTRY EXPENSES 
C25: Baths: | D25: 2 | I25: TURNKEY (single) | M25: Site work | N25: TOTAL HOST COUNTRY | P25: SUB-TOTAL
C26: Bedrooms: | D26: 2 | E26: Basement | F26: Foundation | G26: Building | I26: Rough el. | K26: Others | L26: Rough plumb. | M26: (suitably) | N26: Single | O26: % | P26: USD
C27: W12 x D 26.5 | D27: m | E27: 0 | F27: 500 | G27: 3800 | H27: 0 | I27: 1000 | J27: 1 | L27: 1000 | M27: =D23*F23*$M$57/$F$43 -> 9571.528301 | N27: =SUM(F27:M27) -> 15872.5283 | O27: =N27/K23 -> 0.1220963715 | P27: =D23*N27+E27 -> 63490.1132
C28: Garage Bays: 2 | O28: (Suggested price) For sale: | P28: =ROUNDDOWN(Budget!$B$12*Invest!F23/Invest!$F$43*(1+E58),-3) -> 384000
A29: 4 | B29: Contemporary Bungalow | C29: Ordered | E29: CATALOG | H29: SELLING Prc CIF, USD | L29: U.S. CONTENT | N29: FOREIGN CONTENT | P29: TOTAL
C30: Plans | D30: Nr | E30: Sq Ft | F30: m2 | G30: Prc/m2 Avrg | H30: 1 | I30: Luxury | J30: 2 | K30: Good | L30: USD | M30: % | N30: USD | O30: % | P30: U.S. Export
C31: more | D31: =H31+J31 -> 11 | E31: 1336 | F31: =E31/$R$2 -> 124.1635688 | G31: =(I31+K31)/2/F31 -> 918.1437126 | H31: 1 | I31: 129000 | J31: 10 | K31: 99000 | L31: =H31*(I31-N31)+J31*(K31-N31) -> 1075000 | M31: =1-O31 -> 0.9642941038 | N31: 4000 | O31: =(N31/I31+N31/K31)/2 -> 0.03570589617 | P31: =I31*H31+J31*K31 -> 1119000
C32: Stories: | D32: 1 | E32:  HOST COUNTRY EXPENSES 
C33: Baths: | D33: 3 | I33: TURNKEY (single) | M33: Site work | N33: TOTAL HOST COUNTRY | P33: SUB-TOTAL
C34: Bedrooms: | D34: 2 | E34: Basement | F34: Foundation | G34: Building | I34: Rough el. | K34: Others | L34: Rough plumb. | M34: (suitably) | N34: Single | O34: % | P34: USD
C35: W 21 x D 12.2 | D35: m | E35: 0 | F35: 400 | G35: 3000 | I35: 700 | L35: 700 | M35: =D31*F31*$M$57/$F$43 -> 23334.96681 | N35: =SUM(F35:M35) -> 28134.96681 | O35: =N35/K31 -> 0.2841915839 | P35: =D31*N35+E35 -> 309484.6349
O36: (Suggested price) For sale: | P36: =ROUNDDOWN(Budget!$B$12*Invest!F31/Invest!$F$43*(1+$E$58),-3) -> 341000
A37: 5 | B37: Contemporary home for family workers | C37: Ordered | E37: CATALOG | H37: SELLING Prc CIF, USD | L37: U.S. CONTENT | N37: FOREIGN CONTENT | P37: TOTAL
C38: Plans | D38: Nr | E38: Sq Ft | F38: m2 | G38: Prc/m2 Avrg | H38: 0 | I38: Luxury | J38: 1 | K38: Good | L38: USD | M38: % | N38: USD | O38: % | P38: U.S. Export | R38: 1 | S38: 10 | T38: 2 | U38: 9 | V38: 3 | W38: 10 | X38: 2 | Y38: 10 | Z38: 1 | AA38: 3
D39: =H39+J39 -> 2 | E39: 499 | F39: =E39/$R$2 -> 46.37546468 | H39: 1 | I39: 34000 | J39: 1 | K39: 24000 | L39: =H39*(I39-N39)+J39*(K39-N39) -> 50000 | M39: =1-O39 -> 0.8578431373 | N39: 4000 | O39: =(N39/I39+N39/K39)/2 -> 0.1421568627 | P39: =I39*H39+J39*K39 -> 58000
C40: Stories: | D40: 1 | E40: TURNKEY (single) | M40: Site work | N40: TOTAL HOST COUNTRY | P40: SUB-TOTAL
C41: Baths: | D41: 1 | E41: Basement | F41: Foundation | G41: Building | I41: Rough el. | K41: Others | L41: Rough plumb. | M41: (suitably) | N41: Single | O41: % | P41: USD
C42: Bedroom: | D42: 1 | E42: 500 | F42: 400 | G42: 1000 | I42: 300 | L42: 300 | M42: =D39*F39*$M$57/$F$43 -> 1584.669085 | N42: =SUM(F42:M42) -> 3584.669085 | O42: =N42/I39 -> 0.1054314437 | P42: =D39*N42+E42 -> 7669.33817
C43: W 6.7 x D 9.7 | D43: m | F43: =IF(OR(D3>0,D13>0,D23>0,D31>0,D39>0),($D$3*F3+$D$13*F13+$D$23*F23+$D$31*F31+D39*F39),1) -> 2715.799257 | I43: =H3*I3+H13*I13+H23*I23+H31*I31+H39*I39 -> 502000 | K43: =J3*K3+J13*K13+J23*K23+J31*K31+J39*K39 -> 1724000 | L43: =L3+L13+L23+L31+L39 -> 2124600 | M43: =1-O43 -> 0.9345865963 | N43: =D3*N3+D13*N13+D23*N23+D31*N31+D39*N39 -> 101400 | O43: =(O3+O13+O23+O31+O39)/A37 -> 0.06541340365 | P43: =P3+P13+P23+P31+P39 -> 2226000 | R43: =IF((P43-I43-K43)=0,TRUE,FALSE) -> TRUE
C44: Beds: | D44: -1 | E44: This villa is designed for family permanently serving tourists in the camp
A45: 1 | B45: 1.28 | C45: Homes  | D45: =D3+D13+D23 -> 11
C46: Bungalow bedrooms  | D46: =D31*D34 -> 22
C47: Total Host Country Expenses: | D47: =D3+D13+D23+D31+D39 -> 24 | E47: =E7+E17+E27+E35+E42 -> 1100 | F47: =F7*D3+F17*D13+F27*D23+F35*D31+F42*D39 -> 9300 | G47: =G7*D3+G17*D13+G27*D23+G35*D31+G42*D39 -> 64600 | I47: =I7*D3+I17*D13+I27*D23+I35*D31+I42*D39 -> 16500 | K47: =K7*D3+K17*E13+K27*D23+K35*D31+K42*D39 -> 0 | L47: =L7*D3+L17*D13+L27*D23+L35*D31+L42*D39 -> 16500 | M47: =M7*D3+M17*D13+M27*D23+M35*D31+M42*D39 -> 341145.2741 | O47: =ROUNDDOWN(SUM(E47:M47),-1) -> 449140 | P47: =ROUNDDOWN((P7+P17+P27+P35+P42),-1) -> 449140 | R47: =IF(O47-P47=0,TRUE,FALSE) -> TRUE
C48: Advisory & Assistance Service and Software: | E48: Mariner 1 | F48: 24000 | G48: Mariner 2 | I48: 75000 | J48: 0 | L48: Mariner 3 | P48: =F48+I48*J48 -> 24000
C49: State Investment Agency Tax for permits | E49: 15000 | F49: 5000 | G49: Fee of lawyer for purchase the land. | L49: Other municipal fees and tax  | O49: 10000 | P49: =B45*(E49+F49+O49) -> 38400
C50: Land, TOTAL: | E50: =F50/R2 -> 2788.104089 | F50: =ROUNDUP(F43*10,-4) -> 30000 | G50: 40 | I50: =F50*G50 -> 1200000 | O50: Land, TOTAL: | P50: =I50*B45 -> 1536000
C51: Driveway | M51: 5000
C52: Lighting fixtures | E52: 30 high and 35 low units, price for work without lamps | M52: 2000
C53: Septic | M53: 3000
B54: Кладенец, източник, сонда | C54: Well | E54: Pipeline, labor and materials (incl. to the beach) | M54: 1400 | O54: 32000 | P54: 1638400 | R54: Selected strategy for purchase the land
C55: Others (transformer substation, etc.) | M55: 25000
B56: Озеленняване | C56: Landscaping | M56: 10000
C57: Site work , TOTAL: | M57: =SUM(M51:M56) -> 46400
C58: Commercial cost plus profit: | E58: 0.6
C59: Land for 1st and 2nd Stages, TOTAL: | D59: (Mariner 1 & 2) | F59: 32000 | G59: =F59*G50 -> 1280000 | P59: =G59*B45 -> 1638400
B60: A Unique Layout
A61: 5 | C61: OPTIONAL
C62: Stories: 1 | E62: 1992 | F62: =E62/$R$2 -> 185.1301115 | T62: For more details:
C63: Baths: 3 | T63: .pdf 1.5 MB
C64: Beds: 3
C65: Garage : 2
C66: W 20 x D 19 | E66: m
B68: PROJECT COMPANY "MARINER 1, LTD." | D68: Nr | E68: Salary | F68: Benefits %@ salaries, TOTAL
B69: PERSONNEL
A70: 1) | B70: CEO & Project Manager (part time) | D70: 1 | E70: 1000 | F70: 0.4 | G70: =E70*(1+F70) -> 1400
A71: 2) | B71: Expert - Investment Advisor & Program Manager | D71: 1 | E71: 1500 | F71: 0 | G71: =E71*(1+F71) -> 1500
A72: 3) | B72: Family - yardmen, cleaners, courier refreshments | D72: 2 | E72: 900 | F72: 0.4 | G72: =E72*(1+F72) -> 1260
A73: 4) | B73: Beach bar service | D73: 1 | E73: 700 | F73: 0.4 | G73: =E73*(1+F73) -> 980
B74: For 1 Month: | C74: TOTAL: | D74: =SUM(D70:D73) -> 5 | G74: =SUM(G70:G73) -> 5140

Sheet X
E2: Sq Ft | F2: m2 | G2: Prs | H2: Prs/m2 | O2: Sq Ft | P2: m2
D3: Mediterranian Vacation Retreat | O3: 10.76 | P3: 1
D4: Stories: 1
D5: Baths: 1 | E5: 972 | F5: =E5/$O$3 -> 90.33457249
D6: Beds: 1
I7: Eurostandard!
D9: Two Bed Country
D10: Stories: 2
D11: Baths: 2 | E11: 1072 | F11: =E11/$O$3 -> 99.62825279 | G11: 50000 | H11: True No-Shop™ Log Home Only True No-Shop™ Log Home Only True No-Shop™ Log Home Only
D12: 1/2 Bath: 1
D13: Beds: 2
D15: Contemporary
D16: Stories: 1
D17: Baths: 2 | E17: 1336 | F17: =E17/$O$3 -> 124.1635688
D18: Beds: 3
D19: W 21; D 12.2
D20: Contemporary and Relaxed | G20: > a porch 4 m depth might be developed righthand site to the door
D21: Stories: 1 | G21: before the GREAT RM with a door entrance just on the right to be made
D22: Baths: 1 | E22: 1146 | F22: =E22/$O$3 -> 106.5055762
D23: Beds: 2
D27: Stories: 1 | E27: 1380 | F27: =E27/$O$3 -> 128.2527881
D28: Baths: 2
D32: Two Bed Mediterranean
D33: Stories: 1
D34: Baths: 3 | E34: 1892 | F34: =E34/$O$3 -> 175.8364312
D35: Beds: 2
D36: 12 x 26.5 | E36: m
D37: Garage Bays: 2
D39: Three Bedroom Mediterranean
D40: Stories: 1
D41: Baths: 2 | E41: 1576 | F41: =E41/$O$3 -> 146.4684015
D42: Beds: 3
E44: French Country Hone
D45: Stories: 1
D46: Baths: 2 | E46: 1436 | F46: =E46/$O$3 -> 133.4572491
D47: Beds: 2
D48: Garage Bays: 2
D51: Bungalow
D52: Stories: 2 | E52: 1657 | F52: =E52/$O$3 -> 153.9962825 | H52: =G52/F52 -> 0
D53: Baths: 2
D54: Beds: 2
D56: Exciting Outdoor Living | G56: Extras: Balcony - Inside, Balcony - Outside, Impressive Entrance, In-Law Suite,
D57: Stories: 2 | G57: Porch - Front, Porch - Rear, Porch - Side, Porch - Wraparound, Split Bedrooms.
D58: Baths: 2 | E58: 1904 | F58: =E58/$O$3 -> 176.9516729
D59: Beds: 2
D60: 12 x 15.5 | E60: m
D63: Stories: 1
D64: Baths: 3 | E64: 1992 | F64: =E64/$O$3 -> 185.1301115
D65: Beds: 3
D66: Garage : 2
D69: True No-Shop | E69: 1949 | F69: =E69/$O$3 -> 181.133829 | G69: 142340 | H69: =G69/F69 -> 785.8278091
D70: Completely | F70: =F69 -> 181.133829 | G70: 315400 | H70: =G70/F70 -> 1741.253976
D71: Bedrooms 3
D72: Bathroom 2-1/2
D74: Stories: 2
D75: Bed: 2 | E75: 1325 | F75: =E75/$O$3 -> 123.1412639
D76: Baths: 1
D77: 1/2 Baths: 1
B78: MODULAR HOMES: | F78: Assembled & Ready to Ship
B79: Cabine
E82: 192 | F82: =E82/$O$3 -> 17.84386617 | G82: 13000 | H82: =G82/F82 -> 728.5416667
E84: 348 | F84: =E84/$O$3 -> 32.34200743 | G84: 22640 | H84: =G84/F84 -> 700.0183908
E90: 1203 | F90: =E90/$O$3 -> 111.802974 | G90: 60000 | H90: =G90/F90 -> 536.6583541
E98: 1548 | F98: =E98/$O$3 -> 143.866171 | G98: 81400 | H98: =G98/F98 -> 565.8036176

Sheet Y
A1: Serial | B1: CAPITAL INVESTMENT | C1: Ordered | D1: CATALOG | F1: Prc EXFACTORYy, Quality | H1: Approved | I1: TRANSPORT | K1: SERVICE | L1: TOTAL | M1: TURNKEY | S1: TOTAL | T1: % | U1: Final | V1: TOTAL
A2: Nr | B2: PROJECT | C2: Nr | D2: Sq Ft | E2: m2 | F2: Medium | G2: High | H2: Prs/m2 | I2: Road US | J2: Shipping | K2: Turnkey | L2: US export | M2: Basement | N2: Foundation | O2: Building | P2: Rough el. | Q2: Rough plmb. | R2: Site work | S2: host contry | T2: of US | U2: Prs/m2 | V2: USD
A3: 1 | B3: Mediterrenian Vacation Retreat | D3: 10.76 | E3: 1
C4: 2 | D4: 972 | E4: =D4/$D$3 -> 90.33457249 | I4: =$C$4*I5 -> 1200 | J4: =$C$4*J5 -> 16000
C5: Stories: 1 | I5: 600 | J5: 8000
C6: Baths: 2
C7: Beds: 1 | E7: ?
C8: W15.2 x D 9.7 | D8: m
B11: Contemporary and Relaxed
A12: 2 | C12: 2 | D12: 1146 | E12: =D12/$D$3 -> 106.5055762 | J12: 2400
C13: Stories: 1 | D13: > a porch 4 m depth might be developed right-hand site to the door before the
C14: Baths: 1 | D14: GREAT RM with a door entrance just on the right to be made , or
C15: Beds: 2 | D15: > does a front window option possible - French windows and a sliding door for
C16: W12.2 x D 9.1 | D16: m direct porch communication? Low roofline over the door extended over
C17: Garage Bay: ↓ | D17: the whole porch in the same depth.
C18: Option at the | D18: > Partial change in the interior of the great room
B19: Two Bed Mediterranean | C19: back side added
A20: 3 | C20: 1 | D20: 1892 | E20: =D20/$D$3 -> 175.8364312 | J20: 1600 | M20: 0
C21: Stories: 1
C22: Baths: 3
C23: Beds: 2 | E23: g | G23: g | I23: g | M23: g | N23: g | O23: g | P23: g | Q23: g
C24: W12 x D 26.5 | D24: m
C25: Garage Bays: 2
C26: True No-Shop™ Log Home Only True No-Shop™ Log Home Only True No-Shop™ Log Home Only
B28: Contemporary
A29: 4 | C29: 2 | D29: 1336 | E29: =D29/$D$3 -> 124.1635688 | M29: 0
C30: Stories: 1
C31: Baths: 2
C32: Beds: 3
C33: W 21 x D 12.2 | D33: m
A36: 5 | B36: Contemporary home for family workers
C37: 1 | D37: 400 | E37: 37.2 sq.m.
C38: Style: Cabin
C39: Stories: 1
C40: Baths: 1
C41: Beds: 1
C42: W 6.70' x D 10 | D42: m
B43: A Unique Layout
A44: 5 | C44: OPTIONAL
C45: Stories: 1 | D45: 1992 | E45: =D45/$D$3 -> 185.1301115
C46: Baths: 3
C47: Beds: 3
C48: Garage : 2
C49: W 20 x D 19 | D49: m
B51: Land, TOTAL: | C51: € / sq.m.: | D51: 6 | E51: 5000 | F51: =D51*E51 -> 30000
B54: Site work , TOTAL: | C54: Driveway
C55: Septic
B56: Кладенец, източник, сонда | C56: Well
B57: Озеленяване | C57: Landscaping
Q59: Customized | S59: Plan #:HOMEPW75451
B60: back to Invest | C60: ① | G60: Customized | Z60: ②
G61: Plan #:HOMEPW02510
B96: back to Invest | E96: Plan #:HOMEPW02510
C97: Original | F97: ③ | J97: Customized | O97: ④ | R97: Plan #:HOMEPW14106
P139: ⑤
